Workbook

Sheet Elolap

Sheet Tamogatastartalom
M1: A folyósítások összege kevesebb, mint a hitelösszeg
B3: Ügyfél neve: | G3: Hitelösszeg (EUR) | J3: =D23/C24 -> 2322580.645 | M3: Egyedi folyósítás dátuma | N3: Folyósítás összege | U3: Egyedi törlesztés dátuma | V3: Tőkeamortizáció egyedi törlesztés esetén | W3: periódusközi kamatszámítás | AB3: maradék kamatszámítás | AL3: Piaci konstrukció | AO3: Támogatott konstruckió | AS3: Támogatástartalom | AV3: Támogatástartalom + egyéb kedvezmények
E4: -0.04 | G4: Ténylegesen felvett hitel támogatástartalma (EUR) | J4: =(AV5)/C24 -> 26233.75281 | Q4: kamat | R4: támogatott | W4: dátumtól | X4: tőke | Y4: kamat | Z4: támogatott | AB4: dátumtól | AC4: amort | AD4: tőke | AE4: maradék | AF4: t maradék | AJ4: Periodus | AK4: Dátum | AL4: Tőke | AM4: Tőkeamt. | AN4: Kamatfiz. | AO4: Tőke | AP4: Tőkeamt. | AQ4: Kamatfiz. | AS4: FV | AT4: PV
B5: Pénzügyi intézmény neve refinanszírozás esetén: | G5: Mezőgazdasági tevékenység | J5: =tenylegestt*(SUMIF(C20:C22,"=Mezőgazdasági",D20:D22)/D23) -> 3643.57678 | Q5: =SUM(Q7:Q46) -> -3797260.274 | R5: =SUM(R7:R46) -> -690410.9589 | Y5: =SUM(Y7:Y46) -> 0 | Z5: =SUM(Z7:Z46) -> 0 | AE5: =SUM(AE7:AE46) -> -9729521.602 | AF5: =SUM(AF7:AF46) -> -1440834.563 | AL5: =+AL7 -> 720000000 | AM5: =SUM(AM7:AM46) -> -720000000 | AN5: =SUM(AN7:AN46) -> -9729521.602 | AO5: =+AO7 -> 720000000 | AP5: =SUM(AP7:AP46) -> -720000000 | AQ5: =SUM(AQ7:AQ46) -> -1440834.563 | AS5: =SUM(AS7:AS46) -> 8288687.039 | AT5: =SUM(AT7:AT46) -> 8132463.373 | AV5: =AT5 -> 8132463.373
G6: Halászati tevékenység | J6: =tenylegestt*(SUMIF(C20:C22,"=Halászati",D20:D22)/D23) -> 3643.57678 | K6: Törlesztésiidőszak vége? | AJ6: 0 | AK6: =MAX(C26,MIN(M7:M46)) -> 2020-05-30
G7: Egyéb tevékenység | J7: =tenylegestt*(SUMIF(C20:C22,"=Egyéb",D20:D22)/D23) -> 18946.59926 | K7: =AJ7>$E$15 -> FALSE | O7: =C26 -> 2020-05-30 | P7: =IF(ISBLANK(M7),D23,0) -> 720000000 | Q7: =IF(AND(ISBLANK(M6),AI7<>1),0,IFERROR(IF(IF(ISBLANK(M7),$C$27,M7)<=$E$22,-P7*piacikamat/365*(IF(ISBLANK(M7),$C$27,M7)-O7),IF(O7>$E$22,-P7*piacikamat2/365*(IF(ISBLANK(M7),$C$27,M7)-O7),(-P7*piacikamat/365*($E$22-O7))+(-P7*piacikamat2/365*(IF(ISBLANK(M7),$C$27,M7)-$E$22)))),"")) -> -3797260.274 | R7: =IF(AND(ISBLANK(M6),AI7<>1),0,IFERROR(-P7*tenylegeskamat/365*(IF(ISBLANK(M7),$C$27,M7)-O7),"")) -> -690410.9589 | S7: =IFERROR(IF(ISBLANK(M7),$C$27,M7)-O7,"") -> 350 | W7: =IF(ISNA(MAX(U6,INDEX(AK$6:AK$46,MATCH(U7-1,AK$6:AK$46,1)))),"",MAX(U6,INDEX(AK$6:AK$46,MATCH(U7-1,AK$6:AK$46,1)))) ->  | X7: =IF(ISNA(MIN(IF(OR(ISBLANK(X6),X6=""),INDEX(AL$7:AL$46,MATCH(U7,AK$7:AK$46,1)),X6-V6),INDEX(AL$7:AL$46,MATCH(U7,AK$7:AK$46,1)))),"",MIN(IF(OR(ISBLANK(X6),X6=""),INDEX(AL$7:AL$46,MATCH(U7,AK$7:AK$46,1)),X6-V6),INDEX(AL$7:AL$46,MATCH(U7,AK$7:AK$46,1)))) ->  | Y7: =IFERROR(IF(U7<=$E$22,-X7*piacikamat/365*(U7-W7),IF(W7>$E$22,-X7*piacikamat2/365*(U7-W7),(-X7*piacikamat/365*($E$22-W7))+(-X7*piacikamat2/365*(U7-$E$22)))),"") ->  | Z7: =IFERROR(-X7*tenylegeskamat/365*(U7-W7),"") ->  | AA7: =IFERROR(U7-W7,"") ->  | AB7: =MAX(AK6,IF(ISNA(INDEX(U$7:U$46,MATCH(AK7,U$7:U$46,1))),0,INDEX(U$7:U$46,MATCH(AK7,U$7:U$46,1)))) -> 2020-05-30 | AC7: =IF(ISNA(INDEX(V$7:V$46,MATCH(AK7,U$7:U$46,1))),0,INDEX(V$7:V$46,MATCH(AK7,U$7:U$46,1))) -> 0 | AD7: =IF(ISNA(INDEX(X$7:X$46,MATCH(AK7,U$7:U$46,1))),AL7,INDEX(X$7:X$46,MATCH(AK7,U$7:U$46,1))) -> 720000000 | AE7: =IFERROR(IF(AK7<=$E$22,-(AD7-AC7)*piacikamat/365*(AK7-AB7),IF(AB7>$E$22,-(AD7-AC7)*piacikamat2/365*(AK7-AB7),(-(AD7-AC7)*piacikamat/365*($E$22-AB7))+(-(AD7-AC7)*piacikamat2/365*(AK7-$E$22)))),0) -> -3797260.274 | AF7: =IFERROR(-(AD7-AC7)*tenylegeskamat/365*(AK7-AB7),0) -> -690410.9589 | AG7: =IFERROR(AK7-AB7,"") -> 350 | AI7: 1 | AJ7: =+IF(C28-C27<>0,1,"") -> 1 | AK7: =C27 -> 2021-05-15 | AL7: =IF(+D23<>0,D23,IF(AJ7>0,D23*K7,"")) -> 720000000 | AM7: =IF(torlesztes="Egyedi",-SUMIFS(V$7:V$46,U$7:U$46,">"&AK6,U$7:U$46,"<="&AK7),IFERROR(IF(torlesztes="Egyenlő tőke",IF(COUNT($AL$7:AL7)>$E$15,"",-$AL$5/$E$15),0),"")) -> -27692307.69 | AN7: =SUM(Q7:Q46) -> -3797260.274 | AO7: =+AL7 -> 720000000 | AP7: =IF(torlesztes="Egyedi",-SUMIFS(V$7:V$46,U$7:U$46,">"&AK6,U$7:U$46,"<="&AK7),IFERROR(IF(torlesztes="Egyenlő tőke",IF(COUNT($AO$7:AO7)>$E$15,"",-$AL$5/$E$15),0),"")) -> -27692307.69 | AQ7: =SUM(R7:R46) -> -690410.9589 | AS7: =IFERROR(MAX((ABS(AN7)-ABS(AQ7)),0),"") -> 3106849.315 | AT7: =IFERROR(AS7/(1+($C$9+1%)/365*(AK7-C25)),"") -> 3066978.593 | AU7: =IFERROR(AK7-AK6,"") -> 350
B8: PIACI KAMAT MEGHATÁROZÁSA | G8: Hitelösszeg (HUF) | J8: =J3*C24 -> 720000000 | K8: =AJ8>$E$15 -> FALSE | O8: =IF(ISBLANK(M7),"",M7) ->  | P8: =IF(ISBLANK(M7),0,N7+P7) -> 0 | Q8: 0 | R8: 0 | AB8: 2021-05-15 | AC8: 0 | AD8: 692307692.3 | AE8: -399262.3815 | AF8: -58798.73551 | AG8: 31 | AI8: 2 | AJ8: =IF(COUNT(AK8)=1,AJ7+1,"") -> 2 | AK8: =IF(OR(AK7=$C$28,AK7=""),"",IFERROR(IF(EDATE($C$27,(AI8-1)*12/$E$19)<=$C$28,EDATE($C$27,(AI8-1)*12/$E$19),$C$28),"")) -> 2021-06-15 | AL8: =+IF(COUNT(AL7)<>0,SUM(AL7:AM7)*(1-K8),"") -> 692307692.3 | AM8: =IF(torlesztes="Egyedi",-SUMIFS(V$7:V$46,U$7:U$46,">"&AK7,U$7:U$46,"<="&AK8),IFERROR(IF(torlesztes="Egyenlő tőke",IF(COUNT($AL$7:AL8)>$E$15,"",-$AL$5/$E$15),0),"")) -> -27692307.69 | AN8: =IF(torlesztes="Egyedi",SUMIFS(Y$7:Y$46,U$7:U$46,">"&AK7,U$7:U$46,"<="&AK8)+AE8,IFERROR(IF(AK8<=$E$22,-AL8*piacikamat/365*(AK8-AK7),IF(AK7>$E$22,-AL8*piacikamat2/365*(AK8-AK7),(-AL8*piacikamat/365*($E$22-AK7))+(-AL8*piacikamat2/365*(AK8-$E$22)))),"")) -> -399262.3815 | AO8: =+IF(COUNT(AO7)<>0,SUM(AO7:AP7)*(1-K8),"") -> 692307692.3 | AP8: =IF(torlesztes="Egyedi",-SUMIFS(V$7:V$46,U$7:U$46,">"&AK7,U$7:U$46,"<="&AK8),IFERROR(IF(torlesztes="Egyenlő tőke",IF(COUNT($AO$7:AO8)>$E$15,"",-$AL$5/$E$15),0),"")) -> -27692307.69 | AQ8: =IF(torlesztes="Egyedi",SUMIFS(Z$7:Z$46,U$7:U$46,">"&AK7,U$7:U$46,"<="&AK8)+AF8,IFERROR(-AO8*tenylegeskamat/365*(AK8-AK7),"")) -> -58798.73551 | AS8: =IFERROR(MAX((ABS(AN8)-ABS(AQ8)),0),"") -> 340463.6459 | AT8: =IFERROR(AS8/POWER(1+($C$9+1%)/$E$19,AJ8-1)/(1+($C$9+1%)/365*($AK$7-$C$25)),"") -> 335730.7102 | AU8: 31
B9: Referencia alapkamat | C9: 0.003 | E9: Makrohoz kellenek (ne töröld ki!): | K9: FALSE | O9: =IF(ISBLANK(M8),"",M8) ->  | P9: =IF(ISBLANK(M8),0,N8+P8) -> 0 | Q9: 0 | R9: 0 | AB9: 2021-06-15 | AC9: 0 | AD9: 664615384.6 | AE9: -437007.3762 | AF9: -54625.92202 | AG9: 30 | AI9: 3 | AJ9: =IF(COUNT(AK9)=1,AJ8+1,"") -> 3 | AK9: 2021-07-15 | AL9: 664615384.6 | AM9: =IF(torlesztes="Egyedi",-SUMIFS(V$7:V$46,U$7:U$46,">"&AK8,U$7:U$46,"<="&AK9),IFERROR(IF(torlesztes="Egyenlő tőke",IF(COUNT($AL$7:AL9)>$E$15,"",-$AL$5/$E$15),0),"")) -> -27692307.69 | AN9: -437007.3762 | AO9: 664615384.6 | AP9: =IF(torlesztes="Egyedi",-SUMIFS(V$7:V$46,U$7:U$46,">"&AK8,U$7:U$46,"<="&AK9),IFERROR(IF(torlesztes="Egyenlő tőke",IF(COUNT($AO$7:AO9)>$E$15,"",-$AL$5/$E$15),0),"")) -> -27692307.69 | AQ9: -54625.92202 | AS9: 382381.4542 | AT9: 376657.7546 | AU9: 30
B10: Futamidő: | C10: 12 hónap felett | E10: =+C13/E19 -> 0.0004583333333 | G10: COVID Közlemény 3.1 alapján megítélt támogatásokon felül igénybe vehető szabad keret | K10: FALSE | P10: 0 | Q10: 0 | R10: 0 | AB10: 2021-07-15 | AC10: 0 | AD10: 636923076.9 | AE10: -432758.6934 | AF10: -54094.83667 | AG10: 31 | AI10: 4 | AJ10: =IF(COUNT(AK10)=1,AJ9+1,"") -> 4 | AK10: 2021-08-15 | AL10: 636923076.9 | AM10: =IF(torlesztes="Egyedi",-SUMIFS(V$7:V$46,U$7:U$46,">"&AK9,U$7:U$46,"<="&AK10),IFERROR(IF(torlesztes="Egyenlő tőke",IF(COUNT($AL$7:AL10)>$E$15,"",-$AL$5/$E$15),0),"")) -> -27692307.69 | AN10: -432758.6934 | AO10: 636923076.9 | AP10: =IF(torlesztes="Egyedi",-SUMIFS(V$7:V$46,U$7:U$46,">"&AK9,U$7:U$46,"<="&AK10),IFERROR(IF(torlesztes="Egyenlő tőke",IF(COUNT($AO$7:AO10)>$E$15,"",-$AL$5/$E$15),0),"")) -> -27692307.69 | AQ10: -54094.83667 | AS10: 378663.8567 | AT10: 372592.1627 | AU10: 31
B11: Kockázati felár (bázispont) az első évben: | C11: 25 | H11: Általános szabály | I11: Mezőgazdasági szabály | J11: Halászati szabály | K11: FALSE | P11: 0 | Q11: 0 | R11: 0 | AB11: 2021-08-15 | AC11: 0 | AD11: 609230769.2 | AE11: -413943.098 | AF11: -51742.88725 | AG11: 31 | AI11: 5 | AJ11: 5 | AK11: 2021-09-15 | AL11: 609230769.2 | AM11: =IF(torlesztes="Egyedi",-SUMIFS(V$7:V$46,U$7:U$46,">"&AK10,U$7:U$46,"<="&AK11),IFERROR(IF(torlesztes="Egyenlő tőke",IF(COUNT($AL$7:AL11)>$E$15,"",-$AL$5/$E$15),0),"")) -> -27692307.69 | AN11: -413943.098 | AO11: 609230769.2 | AP11: =IF(torlesztes="Egyedi",-SUMIFS(V$7:V$46,U$7:U$46,">"&AK10,U$7:U$46,"<="&AK11),IFERROR(IF(torlesztes="Egyenlő tőke",IF(COUNT($AO$7:AO11)>$E$15,"",-$AL$5/$E$15),0),"")) -> -27692307.69 | AQ11: -51742.88725 | AS11: 362200.2107 | AT11: 356006.8293 | AU11: 31
B12: Kockázati felár (bázispont) az első éven túl: | C12: =IF(C10="12 hónap felett",50,) -> 50 | E12: 0.0001 | K12: FALSE | P12: 0 | Q12: 0 | R12: 0 | AB12: 2021-09-15 | AC12: 0 | AD12: 581538461.5 | AE12: -382381.4542 | AF12: -47797.68177 | AG12: 30 | AI12: 6 | AJ12: 6 | AK12: 2021-10-15 | AL12: 581538461.5 | AM12: =IF(torlesztes="Egyedi",-SUMIFS(V$7:V$46,U$7:U$46,">"&AK11,U$7:U$46,"<="&AK12),IFERROR(IF(torlesztes="Egyenlő tőke",IF(COUNT($AL$7:AL12)>$E$15,"",-$AL$5/$E$15),0),"")) -> -27692307.69 | AN12: -382381.4542 | AO12: 581538461.5 | AP12: =IF(torlesztes="Egyedi",-SUMIFS(V$7:V$46,U$7:U$46,">"&AK11,U$7:U$46,"<="&AK12),IFERROR(IF(torlesztes="Egyenlő tőke",IF(COUNT($AO$7:AO12)>$E$15,"",-$AL$5/$E$15),0),"")) -> -27692307.69 | AQ12: -47797.68177 | AS12: 334583.7724 | AT12: 328506.7313 | AU12: 30
B13: Ügyfél kamat támogatás nélkül az első évben: | C13: =+(C9+C11/10000) -> 0.0055 | G13: Maximális hitelösszeghez tartozó támogatástartalom (EUR) | H13: =IF(800000-C36<=0,"Nem jogosult",800000-C36) -> 650000 | I13: =IF(mezogazdkizarok=0,"Nem releváns",IF(MIN(100000-C33,800000-C36,120000-C33-C34)<=0,"Nem jogosult",MIN(100000-C33,800000-C36,120000-C33-C34))) -> 50000 | J13: =IF(halaszatikizarok=0,"Nem releváns",IF(MIN(120000-C34,800000-C36,120000-C33-C34)<=0,"Nem jogosult",MIN(120000-C34,800000-C36,120000-C33-C34))) -> 50000 | K13: FALSE | P13: 0 | Q13: 0 | R13: 0 | AB13: 2021-10-15 | AC13: 0 | AD13: 553846153.8 | AE13: -376311.9073 | AF13: -47038.98841 | AG13: 31 | AI13: 7 | AJ13: 7 | AK13: 2021-11-15 | AL13: 553846153.8 | AM13: =IF(torlesztes="Egyedi",-SUMIFS(V$7:V$46,U$7:U$46,">"&AK12,U$7:U$46,"<="&AK13),IFERROR(IF(torlesztes="Egyenlő tőke",IF(COUNT($AL$7:AL13)>$E$15,"",-$AL$5/$E$15),0),"")) -> -27692307.69 | AN13: -376311.9073 | AO13: 553846153.8 | AP13: =IF(torlesztes="Egyedi",-SUMIFS(V$7:V$46,U$7:U$46,">"&AK12,U$7:U$46,"<="&AK13),IFERROR(IF(torlesztes="Egyenlő tőke",IF(COUNT($AO$7:AO13)>$E$15,"",-$AL$5/$E$15),0),"")) -> -27692307.69 | AQ13: -47038.98841 | AS13: 329272.9189 | AT13: 322942.4844 | AU13: 31
B14: Ügyfél kamat támogatás nélkül az első éven túl: | C14: =IF(C10="12 hónap felett",+(C9+C12/10000),0) -> 0.008 | K14: FALSE | P14: 0 | Q14: 0 | R14: 0 | AB14: 2021-11-15 | AC14: 0 | AD14: 526153846.2 | AE14: -345964.1728 | AF14: -43245.5216 | AG14: 30 | AI14: 8 | AJ14: 8 | AK14: 2021-12-15 | AL14: 526153846.2 | AM14: =IF(torlesztes="Egyedi",-SUMIFS(V$7:V$46,U$7:U$46,">"&AK13,U$7:U$46,"<="&AK14),IFERROR(IF(torlesztes="Egyenlő tőke",IF(COUNT($AL$7:AL14)>$E$15,"",-$AL$5/$E$15),0),"")) -> -27692307.69 | AN14: -345964.1728 | AO14: 526153846.2 | AP14: =IF(torlesztes="Egyedi",-SUMIFS(V$7:V$46,U$7:U$46,">"&AK13,U$7:U$46,"<="&AK14),IFERROR(IF(torlesztes="Egyenlő tőke",IF(COUNT($AO$7:AO14)>$E$15,"",-$AL$5/$E$15),0),"")) -> -27692307.69 | AQ14: -43245.5216 | AS14: 302718.6512 | AT14: 296577.4434 | AU14: 30
E15: =COUNT(AJ7:AJ46) -> 26 | K15: FALSE | P15: 0 | Q15: 0 | R15: 0 | AB15: 2021-12-15 | AC15: 0 | AD15: 498461538.5 | AE15: -338680.7165 | AF15: -42335.08957 | AG15: 31 | AI15: 9 | AJ15: 9 | AK15: 2022-01-15 | AL15: 498461538.5 | AM15: =IF(torlesztes="Egyedi",-SUMIFS(V$7:V$46,U$7:U$46,">"&AK14,U$7:U$46,"<="&AK15),IFERROR(IF(torlesztes="Egyenlő tőke",IF(COUNT($AL$7:AL15)>$E$15,"",-$AL$5/$E$15),0),"")) -> -27692307.69 | AN15: -338680.7165 | AO15: 498461538.5 | AP15: =IF(torlesztes="Egyedi",-SUMIFS(V$7:V$46,U$7:U$46,">"&AK14,U$7:U$46,"<="&AK15),IFERROR(IF(torlesztes="Egyenlő tőke",IF(COUNT($AO$7:AO15)>$E$15,"",-$AL$5/$E$15),0),"")) -> -27692307.69 | AQ15: -42335.08957 | AS15: 296345.627 | AT15: 290019.52 | AU15: 31
B16: HITELKARAKTERISZTIKA | K16: FALSE | P16: 0 | Q16: 0 | R16: 0 | AB16: 2022-01-15 | AC16: 0 | AD16: 470769230.8 | AE16: -319865.1212 | AF16: -39983.14015 | AG16: 31 | AI16: 10 | AJ16: =IF(COUNT(AK16)=1,AJ15+1,"") -> 10 | AK16: 2022-02-15 | AL16: 470769230.8 | AM16: =IF(torlesztes="Egyedi",-SUMIFS(V$7:V$46,U$7:U$46,">"&AK15,U$7:U$46,"<="&AK16),IFERROR(IF(torlesztes="Egyenlő tőke",IF(COUNT($AL$7:AL16)>$E$15,"",-$AL$5/$E$15),0),"")) -> -27692307.69 | AN16: -319865.1212 | AO16: 470769230.8 | AP16: =IF(torlesztes="Egyedi",-SUMIFS(V$7:V$46,U$7:U$46,">"&AK15,U$7:U$46,"<="&AK16),IFERROR(IF(torlesztes="Egyenlő tőke",IF(COUNT($AO$7:AO16)>$E$15,"",-$AL$5/$E$15),0),"")) -> -27692307.69 | AQ16: -39983.14015 | AS16: 279881.981 | AT16: 273610.9126 | AU16: 31
B17: Hitel fajtája/célja: | C17: Forgóeszközhitel | K17: FALSE | P17: 0 | Q17: 0 | R17: 0 | AB17: 2022-02-15 | AC17: 0 | AD17: 443076923.1 | AE17: -271915.7007 | AF17: -33989.46259 | AG17: 28 | AI17: 11 | AJ17: =IF(COUNT(AK17)=1,AJ16+1,"") -> 11 | AK17: 2022-03-15 | AL17: 443076923.1 | AM17: =IF(torlesztes="Egyedi",-SUMIFS(V$7:V$46,U$7:U$46,">"&AK16,U$7:U$46,"<="&AK17),IFERROR(IF(torlesztes="Egyenlő tőke",IF(COUNT($AL$7:AL17)>$E$15,"",-$AL$5/$E$15),0),"")) -> -27692307.69 | AN17: -271915.7007 | AO17: 443076923.1 | AP17: =IF(torlesztes="Egyedi",-SUMIFS(V$7:V$46,U$7:U$46,">"&AK16,U$7:U$46,"<="&AK17),IFERROR(IF(torlesztes="Egyenlő tőke",IF(COUNT($AO$7:AO17)>$E$15,"",-$AL$5/$E$15),0),"")) -> -27692307.69 | AQ17: -33989.46259 | AS17: 237926.2381 | AT17: 232343.5295 | AU17: 28
B18: Hitel devizaneme: | C18: HUF | K18: FALSE | P18: 0 | Q18: 0 | R18: 0 | AB18: 2022-03-15 | AC18: 0 | AD18: 415384615.4 | AE18: -282233.9305 | AF18: -35279.24131 | AG18: 31 | AI18: 12 | AJ18: 12 | AK18: 2022-04-15 | AL18: 415384615.4 | AM18: =IF(torlesztes="Egyedi",-SUMIFS(V$7:V$46,U$7:U$46,">"&AK17,U$7:U$46,"<="&AK18),IFERROR(IF(torlesztes="Egyenlő tőke",IF(COUNT($AL$7:AL18)>$E$15,"",-$AL$5/$E$15),0),"")) -> -27692307.69 | AN18: -282233.9305 | AO18: 415384615.4 | AP18: =IF(torlesztes="Egyedi",-SUMIFS(V$7:V$46,U$7:U$46,">"&AK17,U$7:U$46,"<="&AK18),IFERROR(IF(torlesztes="Egyenlő tőke",IF(COUNT($AO$7:AO18)>$E$15,"",-$AL$5/$E$15),0),"")) -> -27692307.69 | AQ18: -35279.24131 | AS18: 246954.6891 | AT18: 240899.1626 | AU18: 31
B19: Egy vagy több tevékenységhez igényli a forgóeszközhitelt?: | C19: Több tevékenység | D19: Hitelösszeg (HUF) | E19: =VLOOKUP($C$31,Adatok!P3:Q5,2,0) -> 12 | K19: FALSE | P19: 0 | Q19: 0 | R19: 0 | AB19: 2022-04-15 | AC19: 0 | AD19: 387692307.7 | AE19: -254920.9694 | AF19: -31865.12118 | AG19: 30 | AI19: 13 | AJ19: 13 | AK19: 2022-05-15 | AL19: 387692307.7 | AM19: =IF(torlesztes="Egyedi",-SUMIFS(V$7:V$46,U$7:U$46,">"&AK18,U$7:U$46,"<="&AK19),IFERROR(IF(torlesztes="Egyenlő tőke",IF(COUNT($AL$7:AL19)>$E$15,"",-$AL$5/$E$15),0),"")) -> -27692307.69 | AN19: -254920.9694 | AO19: 387692307.7 | AP19: =IF(torlesztes="Egyedi",-SUMIFS(V$7:V$46,U$7:U$46,">"&AK18,U$7:U$46,"<="&AK19),IFERROR(IF(torlesztes="Egyenlő tőke",IF(COUNT($AO$7:AO19)>$E$15,"",-$AL$5/$E$15),0),"")) -> -27692307.69 | AQ19: -31865.12118 | AS19: 223055.8483 | AT19: 217350.8769 | AU19: 30
B20: Kérem nevezze meg a tevékenységet! | C20: Halászati | D20: 100000000 | K20: FALSE | P20: 0 | Q20: 0 | R20: 0 | AB20: 2022-05-15 | AC20: 0 | AD20: 360000000 | AE20: -244602.7397 | AF20: -30575.34247 | AG20: 31 | AI20: 14 | AJ20: 14 | AK20: 2022-06-15 | AL20: 360000000 | AM20: =IF(torlesztes="Egyedi",-SUMIFS(V$7:V$46,U$7:U$46,">"&AK19,U$7:U$46,"<="&AK20),IFERROR(IF(torlesztes="Egyenlő tőke",IF(COUNT($AL$7:AL20)>$E$15,"",-$AL$5/$E$15),0),"")) -> -27692307.69 | AN20: -244602.7397 | AO20: 360000000 | AP20: =IF(torlesztes="Egyedi",-SUMIFS(V$7:V$46,U$7:U$46,">"&AK19,U$7:U$46,"<="&AK20),IFERROR(IF(torlesztes="Egyenlő tőke",IF(COUNT($AO$7:AO20)>$E$15,"",-$AL$5/$E$15),0),"")) -> -27692307.69 | AQ20: -30575.34247 | AS20: 214027.3973 | AT20: 208327.6531 | AU20: 31
B21: Kérem nevezze meg a tevékenységet! | C21: Mezőgazdasági | D21: 100000000 | K21: FALSE | P21: 0 | Q21: 0 | R21: 0 | AB21: 2022-06-15 | AC21: 0 | AD21: 332307692.3 | AE21: -218503.6881 | AF21: -27312.96101 | AG21: 30 | AI21: 15 | AJ21: 15 | AK21: 2022-07-15 | AL21: 332307692.3 | AM21: =IF(torlesztes="Egyedi",-SUMIFS(V$7:V$46,U$7:U$46,">"&AK20,U$7:U$46,"<="&AK21),IFERROR(IF(torlesztes="Egyenlő tőke",IF(COUNT($AL$7:AL21)>$E$15,"",-$AL$5/$E$15),0),"")) -> -27692307.69 | AN21: -218503.6881 | AO21: 332307692.3 | AP21: =IF(torlesztes="Egyedi",-SUMIFS(V$7:V$46,U$7:U$46,">"&AK20,U$7:U$46,"<="&AK21),IFERROR(IF(torlesztes="Egyenlő tőke",IF(COUNT($AO$7:AO21)>$E$15,"",-$AL$5/$E$15),0),"")) -> -27692307.69 | AQ21: -27312.96101 | AS21: 191190.7271 | AT21: 185897.755 | AU21: 30
B22: Kérem nevezze meg a tevékenységet! | C22: Egyéb | D22: 520000000 | E22: =DATE(YEAR($C$26)+1,MONTH($C$26),DAY($C$26)) -> 2021-05-30 | K22: FALSE | P22: 0 | Q22: 0 | R22: 0 | AB22: 2022-07-15 | AC22: 0 | AD22: 304615384.6 | AE22: -206971.549 | AF22: -25871.44362 | AG22: 31 | AI22: 16 | AJ22: 16 | AK22: 2022-08-15 | AL22: 304615384.6 | AM22: =IF(torlesztes="Egyedi",-SUMIFS(V$7:V$46,U$7:U$46,">"&AK21,U$7:U$46,"<="&AK22),IFERROR(IF(torlesztes="Egyenlő tőke",IF(COUNT($AL$7:AL22)>$E$15,"",-$AL$5/$E$15),0),"")) -> -27692307.69 | AN22: -206971.549 | AO22: 304615384.6 | AP22: =IF(torlesztes="Egyedi",-SUMIFS(V$7:V$46,U$7:U$46,">"&AK21,U$7:U$46,"<="&AK22),IFERROR(IF(torlesztes="Egyenlő tőke",IF(COUNT($AO$7:AO22)>$E$15,"",-$AL$5/$E$15),0),"")) -> -27692307.69 | AQ22: -25871.44362 | AS22: 181100.1054 | AT22: 175895.9307 | AU22: 31
B23: Hitelösszeg összesen: | D23: =IF(SUM(D20:D22)>720000000,"A hitelösszeg nem haladhatja meg a 720 milló forintot!",SUM(D20:D22)) -> 720000000 | K23: FALSE | P23: 0 | Q23: 0 | R23: 0 | AB23: 2022-08-15 | AC23: 0 | AD23: 276923076.9 | AE23: -188155.9536 | AF23: -23519.4942 | AG23: 31 | AI23: 17 | AJ23: 17 | AK23: 2022-09-15 | AL23: 276923076.9 | AM23: =IF(torlesztes="Egyedi",-SUMIFS(V$7:V$46,U$7:U$46,">"&AK22,U$7:U$46,"<="&AK23),IFERROR(IF(torlesztes="Egyenlő tőke",IF(COUNT($AL$7:AL23)>$E$15,"",-$AL$5/$E$15),0),"")) -> -27692307.69 | AN23: -188155.9536 | AO23: 276923076.9 | AP23: =IF(torlesztes="Egyedi",-SUMIFS(V$7:V$46,U$7:U$46,">"&AK22,U$7:U$46,"<="&AK23),IFERROR(IF(torlesztes="Egyenlő tőke",IF(COUNT($AO$7:AO23)>$E$15,"",-$AL$5/$E$15),0),"")) -> -27692307.69 | AQ23: -23519.4942 | AS23: 164636.4594 | AT23: 159732.3482 | AU23: 31
B24: HUF/EUR árfolyam | C24: 310 | K24: FALSE | P24: 0 | Q24: 0 | R24: 0 | AB24: 2022-09-15 | AC24: 0 | AD24: 249230769.2 | AE24: -163877.7661 | AF24: -20484.72076 | AG24: 30 | AI24: 18 | AJ24: 18 | AK24: 2022-10-15 | AL24: 249230769.2 | AM24: =IF(torlesztes="Egyedi",-SUMIFS(V$7:V$46,U$7:U$46,">"&AK23,U$7:U$46,"<="&AK24),IFERROR(IF(torlesztes="Egyenlő tőke",IF(COUNT($AL$7:AL24)>$E$15,"",-$AL$5/$E$15),0),"")) -> -27692307.69 | AN24: -163877.7661 | AO24: 249230769.2 | AP24: =IF(torlesztes="Egyedi",-SUMIFS(V$7:V$46,U$7:U$46,">"&AK23,U$7:U$46,"<="&AK24),IFERROR(IF(torlesztes="Egyenlő tőke",IF(COUNT($AO$7:AO24)>$E$15,"",-$AL$5/$E$15),0),"")) -> -27692307.69 | AQ24: -20484.72076 | AS24: 143393.0453 | AT24: 138971.1705 | AU24: 30
B25: Hitel jóváhagyásának várható időpontja (EXIM döntés dátuma) | C25: 2020-05-15 | K25: FALSE | P25: 0 | Q25: 0 | R25: 0 | AB25: 2022-10-15 | AC25: 0 | AD25: 221538461.5 | AE25: -150524.7629 | AF25: -18815.59536 | AG25: 31 | AI25: 19 | AJ25: 19 | AK25: 2022-11-15 | AL25: 221538461.5 | AM25: =IF(torlesztes="Egyedi",-SUMIFS(V$7:V$46,U$7:U$46,">"&AK24,U$7:U$46,"<="&AK25),IFERROR(IF(torlesztes="Egyenlő tőke",IF(COUNT($AL$7:AL25)>$E$15,"",-$AL$5/$E$15),0),"")) -> -27692307.69 | AN25: -150524.7629 | AO25: 221538461.5 | AP25: =IF(torlesztes="Egyedi",-SUMIFS(V$7:V$46,U$7:U$46,">"&AK24,U$7:U$46,"<="&AK25),IFERROR(IF(torlesztes="Egyenlő tőke",IF(COUNT($AO$7:AO25)>$E$15,"",-$AL$5/$E$15),0),"")) -> -27692307.69 | AQ25: -18815.59536 | AS25: 131709.1675 | AT25: 127509.4584 | AU25: 31
B26: ="Szerződéskötés várható dátuma"&IF(C26>DATE(2021,6,30)," - Nem lehet későbbi, mint 2021.06.30","") -> Szerződéskötés várható dátuma | C26: 2020-05-30 | K26: FALSE | P26: 0 | Q26: 0 | R26: 0 | AB26: 2022-11-15 | AC26: 0 | AD26: 193846153.8 | AE26: -127460.4847 | AF26: -15932.56059 | AG26: 30 | AI26: 20 | AJ26: 20 | AK26: 2022-12-15 | AL26: 193846153.8 | AM26: =IF(torlesztes="Egyedi",-SUMIFS(V$7:V$46,U$7:U$46,">"&AK25,U$7:U$46,"<="&AK26),IFERROR(IF(torlesztes="Egyenlő tőke",IF(COUNT($AL$7:AL26)>$E$15,"",-$AL$5/$E$15),0),"")) -> -27692307.69 | AN26: -127460.4847 | AO26: 193846153.8 | AP26: =IF(torlesztes="Egyedi",-SUMIFS(V$7:V$46,U$7:U$46,">"&AK25,U$7:U$46,"<="&AK26),IFERROR(IF(torlesztes="Egyenlő tőke",IF(COUNT($AO$7:AO26)>$E$15,"",-$AL$5/$E$15),0),"")) -> -27692307.69 | AQ26: -15932.56059 | AS26: 111527.9241 | AT26: 107854.876 | AU26: 30
B27: Első törlesztés várható dátuma | C27: 2021-05-15 | K27: FALSE | P27: 0 | Q27: 0 | R27: 0 | AB27: 2022-12-15 | AC27: 0 | AD27: 166153846.2 | AE27: -112893.5722 | AF27: -14111.69652 | AG27: 31 | AI27: 21 | AJ27: 21 | AK27: 2023-01-15 | AL27: 166153846.2 | AM27: =IF(torlesztes="Egyedi",-SUMIFS(V$7:V$46,U$7:U$46,">"&AK26,U$7:U$46,"<="&AK27),IFERROR(IF(torlesztes="Egyenlő tőke",IF(COUNT($AL$7:AL27)>$E$15,"",-$AL$5/$E$15),0),"")) -> -27692307.69 | AN27: -112893.5722 | AO27: 166153846.2 | AP27: =IF(torlesztes="Egyedi",-SUMIFS(V$7:V$46,U$7:U$46,">"&AK26,U$7:U$46,"<="&AK27),IFERROR(IF(torlesztes="Egyenlő tőke",IF(COUNT($AO$7:AO27)>$E$15,"",-$AL$5/$E$15),0),"")) -> -27692307.69 | AQ27: -14111.69652 | AS27: 98781.87566 | AT27: 95425.22714 | AU27: 31
B28: Hitel végső lejáratának várható dátuma | C28: 2023-05-30 | K28: FALSE | P28: 0 | Q28: 0 | R28: 0 | AB28: 2023-01-15 | AC28: 0 | AD28: 138461538.5 | AE28: -94077.97682 | AF28: -11759.7471 | AG28: 31 | AI28: 22 | AJ28: 22 | AK28: 2023-02-15 | AL28: 138461538.5 | AM28: =IF(torlesztes="Egyedi",-SUMIFS(V$7:V$46,U$7:U$46,">"&AK27,U$7:U$46,"<="&AK28),IFERROR(IF(torlesztes="Egyenlő tőke",IF(COUNT($AL$7:AL28)>$E$15,"",-$AL$5/$E$15),0),"")) -> -27692307.69 | AN28: -94077.97682 | AO28: 138461538.5 | AP28: =IF(torlesztes="Egyedi",-SUMIFS(V$7:V$46,U$7:U$46,">"&AK27,U$7:U$46,"<="&AK28),IFERROR(IF(torlesztes="Egyenlő tőke",IF(COUNT($AO$7:AO28)>$E$15,"",-$AL$5/$E$15),0),"")) -> -27692307.69 | AQ28: -11759.7471 | AS28: 82318.22972 | AT28: 79434.96806 | AU28: 31
B29: Tényleges ügyleti kamat | C29: 0.001 | K29: FALSE | P29: 0 | Q29: 0 | R29: 0 | AB29: 2023-02-15 | AC29: 0 | AD29: 110769230.8 | AE29: -67978.92518 | AF29: -8497.365648 | AG29: 28 | AI29: 23 | AJ29: =IF(COUNT(AK29)=1,AJ28+1,"") -> 23 | AK29: 2023-03-15 | AL29: 110769230.8 | AM29: =IF(torlesztes="Egyedi",-SUMIFS(V$7:V$46,U$7:U$46,">"&AK28,U$7:U$46,"<="&AK29),IFERROR(IF(torlesztes="Egyenlő tőke",IF(COUNT($AL$7:AL29)>$E$15,"",-$AL$5/$E$15),0),"")) -> -27692307.69 | AN29: -67978.92518 | AO29: 110769230.8 | AP29: =IF(torlesztes="Egyedi",-SUMIFS(V$7:V$46,U$7:U$46,">"&AK28,U$7:U$46,"<="&AK29),IFERROR(IF(torlesztes="Egyenlő tőke",IF(COUNT($AO$7:AO29)>$E$15,"",-$AL$5/$E$15),0),"")) -> -27692307.69 | AQ29: -8497.365648 | AS29: 59481.55954 | AT29: 57336.05641 | AU29: 28
B30: Törlesztés módja | C30: Egyenlő tőke | K30: FALSE | P30: 0 | Q30: 0 | R30: 0 | AB30: 2023-03-15 | AC30: 0 | AD30: 83076923.08 | AE30: -56446.78609 | AF30: -7055.848261 | AG30: 31 | AI30: 24 | AJ30: 24 | AK30: 2023-04-15 | AL30: 83076923.08 | AM30: =IF(torlesztes="Egyedi",-SUMIFS(V$7:V$46,U$7:U$46,">"&AK29,U$7:U$46,"<="&AK30),IFERROR(IF(torlesztes="Egyenlő tőke",IF(COUNT($AL$7:AL30)>$E$15,"",-$AL$5/$E$15),0),"")) -> -27692307.69 | AN30: -56446.78609 | AO30: 83076923.08 | AP30: =IF(torlesztes="Egyedi",-SUMIFS(V$7:V$46,U$7:U$46,">"&AK29,U$7:U$46,"<="&AK30),IFERROR(IF(torlesztes="Egyenlő tőke",IF(COUNT($AO$7:AO30)>$E$15,"",-$AL$5/$E$15),0),"")) -> -27692307.69 | AQ30: -7055.848261 | AS30: 49390.93783 | AT30: 47557.88294 | AU30: 31
B31: =IF(torlesztes="Egyenlő tőke","Kamatfizetés/tőketörlesztés gyakorisága","Kamatfizetés gyakorisága") -> Kamatfizetés/tőketörlesztés gyakorisága | C31: Havi | K31: FALSE | P31: 0 | Q31: 0 | R31: 0 | AB31: 2023-04-15 | AC31: 0 | AD31: 55384615.38 | AE31: -36417.28135 | AF31: -4552.160169 | AG31: 30 | AI31: 25 | AJ31: 25 | AK31: 2023-05-15 | AL31: 55384615.38 | AM31: =IF(torlesztes="Egyedi",-SUMIFS(V$7:V$46,U$7:U$46,">"&AK30,U$7:U$46,"<="&AK31),IFERROR(IF(torlesztes="Egyenlő tőke",IF(COUNT($AL$7:AL31)>$E$15,"",-$AL$5/$E$15),0),"")) -> -27692307.69 | AN31: -36417.28135 | AO31: 55384615.38 | AP31: =IF(torlesztes="Egyedi",-SUMIFS(V$7:V$46,U$7:U$46,">"&AK30,U$7:U$46,"<="&AK31),IFERROR(IF(torlesztes="Egyenlő tőke",IF(COUNT($AO$7:AO31)>$E$15,"",-$AL$5/$E$15),0),"")) -> -27692307.69 | AQ31: -4552.160169 | AS31: 31865.12118 | AT31: 30649.30172 | AU31: 30
B32: COVID Közlemény 3.1 alapján megítélt állami támogatások | K32: FALSE | P32: 0 | Q32: 0 | R32: 0 | AB32: 2023-05-15 | AC32: 0 | AD32: 27692307.69 | AE32: -9104.320337 | AF32: -1138.040042 | AG32: 15 | AI32: 26 | AJ32: 26 | AK32: 2023-05-30 | AL32: 27692307.69 | AM32: =IF(torlesztes="Egyedi",-SUMIFS(V$7:V$46,U$7:U$46,">"&AK31,U$7:U$46,"<="&AK32),IFERROR(IF(torlesztes="Egyenlő tőke",IF(COUNT($AL$7:AL32)>$E$15,"",-$AL$5/$E$15),0),"")) -> -27692307.69 | AN32: -9104.320337 | AO32: 27692307.69 | AP32: =IF(torlesztes="Egyedi",-SUMIFS(V$7:V$46,U$7:U$46,">"&AK31,U$7:U$46,"<="&AK32),IFERROR(IF(torlesztes="Egyenlő tőke",IF(COUNT($AO$7:AO32)>$E$15,"",-$AL$5/$E$15),0),"")) -> -27692307.69 | AQ32: -1138.040042 | AS32: 7966.280295 | AT32: 7654.033559 | AU32: 15
B33: Mezőgazdasági ágazatra megítélt támogatás teljes összege (EUR): | C33: 50000 | K33: TRUE | P33: 0 | Q33: 0 | R33: 0 | AB33: 2023-05-30 | AC33: 0 | AD33: 0 | AE33: 0 | AF33: 0 | AI33: 27 | AL33: 0 | AM33: =IF(torlesztes="Egyedi",-SUMIFS(V$7:V$46,U$7:U$46,">"&AK32,U$7:U$46,"<="&AK33),IFERROR(IF(torlesztes="Egyenlő tőke",IF(COUNT($AL$7:AL33)>$E$15,"",-$AL$5/$E$15),0),"")) ->  | AO33: 0 | AP33: =IF(torlesztes="Egyedi",-SUMIFS(V$7:V$46,U$7:U$46,">"&AK32,U$7:U$46,"<="&AK33),IFERROR(IF(torlesztes="Egyenlő tőke",IF(COUNT($AO$7:AO33)>$E$15,"",-$AL$5/$E$15),0),"")) -> 
B34: Halászati, akvakultúra ágazatra megítélt támogatás teljes összeg (EUR): | C34: 20000 | K34: TRUE | P34: 0 | Q34: 0 | R34: 0 | AB34: 00:00:00 | AC34: 0 | AD34: 0 | AE34: 0 | AF34: 0 | AI34: 28 | AL34: 0 | AM34: =IF(torlesztes="Egyedi",-SUMIFS(V$7:V$46,U$7:U$46,">"&AK33,U$7:U$46,"<="&AK34),IFERROR(IF(torlesztes="Egyenlő tőke",IF(COUNT($AL$7:AL34)>$E$15,"",-$AL$5/$E$15),0),"")) ->  | AO34: 0 | AP34: =IF(torlesztes="Egyedi",-SUMIFS(V$7:V$46,U$7:U$46,">"&AK33,U$7:U$46,"<="&AK34),IFERROR(IF(torlesztes="Egyenlő tőke",IF(COUNT($AO$7:AO34)>$E$15,"",-$AL$5/$E$15),0),"")) -> 
B35: Egyéb ágazatra megítélt támogatás tejes összege (EUR): | C35: 80000 | K35: TRUE | P35: 0 | Q35: 0 | R35: 0 | AB35: 00:00:00 | AC35: 0 | AD35: 0 | AE35: 0 | AF35: 0 | AI35: 29 | AL35: 0 | AM35: =IF(torlesztes="Egyedi",-SUMIFS(V$7:V$46,U$7:U$46,">"&AK34,U$7:U$46,"<="&AK35),IFERROR(IF(torlesztes="Egyenlő tőke",IF(COUNT($AL$7:AL35)>$E$15,"",-$AL$5/$E$15),0),"")) ->  | AO35: 0 | AP35: =IF(torlesztes="Egyedi",-SUMIFS(V$7:V$46,U$7:U$46,">"&AK34,U$7:U$46,"<="&AK35),IFERROR(IF(torlesztes="Egyenlő tőke",IF(COUNT($AO$7:AO35)>$E$15,"",-$AL$5/$E$15),0),"")) -> 
B36: COVID Közlemény 3.1 szakasza alapján megítélt támogatások teljes összege (EUR) | C36: =SUM(C33:C35) -> 150000 | K36: TRUE | P36: 0 | Q36: 0 | R36: 0 | AB36: 00:00:00 | AC36: 0 | AD36: 0 | AE36: 0 | AF36: 0 | AI36: 30 | AL36: 0 | AM36: =IF(torlesztes="Egyedi",-SUMIFS(V$7:V$46,U$7:U$46,">"&AK35,U$7:U$46,"<="&AK36),IFERROR(IF(torlesztes="Egyenlő tőke",IF(COUNT($AL$7:AL36)>$E$15,"",-$AL$5/$E$15),0),"")) ->  | AO36: 0 | AP36: =IF(torlesztes="Egyedi",-SUMIFS(V$7:V$46,U$7:U$46,">"&AK35,U$7:U$46,"<="&AK36),IFERROR(IF(torlesztes="Egyenlő tőke",IF(COUNT($AO$7:AO36)>$E$15,"",-$AL$5/$E$15),0),"")) -> 
K37: TRUE | P37: 0 | Q37: 0 | R37: 0 | AB37: 00:00:00 | AC37: 0 | AD37: 0 | AE37: 0 | AF37: 0 | AI37: 31 | AL37: 0 | AM37: =IF(torlesztes="Egyedi",-SUMIFS(V$7:V$46,U$7:U$46,">"&AK36,U$7:U$46,"<="&AK37),IFERROR(IF(torlesztes="Egyenlő tőke",IF(COUNT($AL$7:AL37)>$E$15,"",-$AL$5/$E$15),0),"")) ->  | AO37: 0 | AP37: =IF(torlesztes="Egyedi",-SUMIFS(V$7:V$46,U$7:U$46,">"&AK36,U$7:U$46,"<="&AK37),IFERROR(IF(torlesztes="Egyenlő tőke",IF(COUNT($AO$7:AO37)>$E$15,"",-$AL$5/$E$15),0),"")) -> 
K38: TRUE | P38: 0 | Q38: 0 | R38: 0 | AB38: 00:00:00 | AC38: 0 | AD38: 0 | AE38: 0 | AF38: 0 | AI38: 32 | AL38: 0 | AM38: =IF(torlesztes="Egyedi",-SUMIFS(V$7:V$46,U$7:U$46,">"&AK37,U$7:U$46,"<="&AK38),IFERROR(IF(torlesztes="Egyenlő tőke",IF(COUNT($AL$7:AL38)>$E$15,"",-$AL$5/$E$15),0),"")) ->  | AO38: 0 | AP38: =IF(torlesztes="Egyedi",-SUMIFS(V$7:V$46,U$7:U$46,">"&AK37,U$7:U$46,"<="&AK38),IFERROR(IF(torlesztes="Egyenlő tőke",IF(COUNT($AO$7:AO38)>$E$15,"",-$AL$5/$E$15),0),"")) -> 
K39: TRUE | P39: 0 | Q39: 0 | R39: 0 | AB39: 00:00:00 | AC39: 0 | AD39: 0 | AE39: 0 | AF39: 0 | AI39: 33 | AL39: 0 | AM39: =IF(torlesztes="Egyedi",-SUMIFS(V$7:V$46,U$7:U$46,">"&AK38,U$7:U$46,"<="&AK39),IFERROR(IF(torlesztes="Egyenlő tőke",IF(COUNT($AL$7:AL39)>$E$15,"",-$AL$5/$E$15),0),"")) ->  | AO39: 0 | AP39: =IF(torlesztes="Egyedi",-SUMIFS(V$7:V$46,U$7:U$46,">"&AK38,U$7:U$46,"<="&AK39),IFERROR(IF(torlesztes="Egyenlő tőke",IF(COUNT($AO$7:AO39)>$E$15,"",-$AL$5/$E$15),0),"")) -> 
K40: TRUE | P40: 0 | Q40: 0 | R40: 0 | AB40: 00:00:00 | AC40: 0 | AD40: 0 | AE40: 0 | AF40: 0 | AI40: 34 | AL40: 0 | AM40: =IF(torlesztes="Egyedi",-SUMIFS(V$7:V$46,U$7:U$46,">"&AK39,U$7:U$46,"<="&AK40),IFERROR(IF(torlesztes="Egyenlő tőke",IF(COUNT($AL$7:AL40)>$E$15,"",-$AL$5/$E$15),0),"")) ->  | AO40: 0 | AP40: =IF(torlesztes="Egyedi",-SUMIFS(V$7:V$46,U$7:U$46,">"&AK39,U$7:U$46,"<="&AK40),IFERROR(IF(torlesztes="Egyenlő tőke",IF(COUNT($AO$7:AO40)>$E$15,"",-$AL$5/$E$15),0),"")) -> 
K41: TRUE | P41: 0 | Q41: 0 | R41: 0 | AB41: 00:00:00 | AC41: 0 | AD41: 0 | AE41: 0 | AF41: 0 | AI41: 35 | AL41: 0 | AM41: =IF(torlesztes="Egyedi",-SUMIFS(V$7:V$46,U$7:U$46,">"&AK40,U$7:U$46,"<="&AK41),IFERROR(IF(torlesztes="Egyenlő tőke",IF(COUNT($AL$7:AL41)>$E$15,"",-$AL$5/$E$15),0),"")) ->  | AO41: 0 | AP41: =IF(torlesztes="Egyedi",-SUMIFS(V$7:V$46,U$7:U$46,">"&AK40,U$7:U$46,"<="&AK41),IFERROR(IF(torlesztes="Egyenlő tőke",IF(COUNT($AO$7:AO41)>$E$15,"",-$AL$5/$E$15),0),"")) -> 
K42: TRUE | P42: 0 | Q42: 0 | R42: 0 | AB42: 00:00:00 | AC42: 0 | AD42: 0 | AE42: 0 | AF42: 0 | AI42: 36 | AL42: 0 | AM42: =IF(torlesztes="Egyedi",-SUMIFS(V$7:V$46,U$7:U$46,">"&AK41,U$7:U$46,"<="&AK42),IFERROR(IF(torlesztes="Egyenlő tőke",IF(COUNT($AL$7:AL42)>$E$15,"",-$AL$5/$E$15),0),"")) ->  | AO42: 0 | AP42: =IF(torlesztes="Egyedi",-SUMIFS(V$7:V$46,U$7:U$46,">"&AK41,U$7:U$46,"<="&AK42),IFERROR(IF(torlesztes="Egyenlő tőke",IF(COUNT($AO$7:AO42)>$E$15,"",-$AL$5/$E$15),0),"")) -> 
K43: TRUE | P43: 0 | Q43: 0 | R43: 0 | AB43: 00:00:00 | AC43: 0 | AD43: 0 | AE43: 0 | AF43: 0 | AI43: 37 | AL43: 0 | AM43: =IF(torlesztes="Egyedi",-SUMIFS(V$7:V$46,U$7:U$46,">"&AK42,U$7:U$46,"<="&AK43),IFERROR(IF(torlesztes="Egyenlő tőke",IF(COUNT($AL$7:AL43)>$E$15,"",-$AL$5/$E$15),0),"")) ->  | AO43: 0 | AP43: =IF(torlesztes="Egyedi",-SUMIFS(V$7:V$46,U$7:U$46,">"&AK42,U$7:U$46,"<="&AK43),IFERROR(IF(torlesztes="Egyenlő tőke",IF(COUNT($AO$7:AO43)>$E$15,"",-$AL$5/$E$15),0),"")) ->  | AU43: =IFERROR(AK43-AK42,"") -> 
K44: TRUE | P44: 0 | Q44: 0 | R44: 0 | AB44: 00:00:00 | AC44: 0 | AD44: 0 | AE44: 0 | AF44: 0 | AI44: 38 | AL44: 0 | AM44: =IF(torlesztes="Egyedi",-SUMIFS(V$7:V$46,U$7:U$46,">"&AK43,U$7:U$46,"<="&AK44),IFERROR(IF(torlesztes="Egyenlő tőke",IF(COUNT($AL$7:AL44)>$E$15,"",-$AL$5/$E$15),0),"")) ->  | AO44: 0 | AP44: =IF(torlesztes="Egyedi",-SUMIFS(V$7:V$46,U$7:U$46,">"&AK43,U$7:U$46,"<="&AK44),IFERROR(IF(torlesztes="Egyenlő tőke",IF(COUNT($AO$7:AO44)>$E$15,"",-$AL$5/$E$15),0),"")) -> 
K45: TRUE | O45: =IF(ISBLANK(M44),"",M44) ->  | P45: =IF(ISBLANK(M44),0,N44+P44) -> 0 | Q45: 0 | R45: 0 | AB45: 00:00:00 | AC45: 0 | AD45: 0 | AE45: 0 | AF45: 0 | AI45: 39 | AL45: 0 | AM45: =IF(torlesztes="Egyedi",-SUMIFS(V$7:V$46,U$7:U$46,">"&AK44,U$7:U$46,"<="&AK45),IFERROR(IF(torlesztes="Egyenlő tőke",IF(COUNT($AL$7:AL45)>$E$15,"",-$AL$5/$E$15),0),"")) ->  | AO45: 0 | AP45: =IF(torlesztes="Egyedi",-SUMIFS(V$7:V$46,U$7:U$46,">"&AK44,U$7:U$46,"<="&AK45),IFERROR(IF(torlesztes="Egyenlő tőke",IF(COUNT($AO$7:AO45)>$E$15,"",-$AL$5/$E$15),0),"")) -> 
K46: TRUE | P46: 0 | Q46: 0 | R46: 0 | AB46: 00:00:00 | AC46: 0 | AD46: 0 | AE46: 0 | AF46: 0 | AI46: 40 | AL46: 0 | AM46: =IF(torlesztes="Egyedi",-SUMIFS(V$7:V$46,U$7:U$46,">"&AK45,U$7:U$46,"<="&AK46),IFERROR(IF(torlesztes="Egyenlő tőke",IF(COUNT($AL$7:AL46)>$E$15,"",-$AL$5/$E$15),0),"")) ->  | AO46: 0 | AP46: =IF(torlesztes="Egyedi",-SUMIFS(V$7:V$46,U$7:U$46,">"&AK45,U$7:U$46,"<="&AK46),IFERROR(IF(torlesztes="Egyenlő tőke",IF(COUNT($AO$7:AO46)>$E$15,"",-$AL$5/$E$15),0),"")) -> 

Sheet Szamitasok (hidden)
A1: Kizárók és KO-k
E2: Mezőgazdasági | F2: Halászat/akvakultúra
A3: Szorzó értéke
A4: =PRODUCT(C4:W4) -> 0 | B4: általános
A5: =PRODUCT(E5:F5) -> 1 | B5: mezőgazdasági | E5: =IF(OR(Tamogatastartalom!C20="Mezőgazdasági",Tamogatastartalom!C21="Mezőgazdasági",Tamogatastartalom!C22="Mezőgazdasági"),1,0) -> 1
A6: =PRODUCT(E6:F6) -> 1 | B6: halászati | F6: =IF(OR(Tamogatastartalom!C20="Halászati",Tamogatastartalom!C21="Halászati",Tamogatastartalom!C22="Halászati"),1,0) -> 1
A7: 14-es cikk
A8: R szorzó értéke
A9: Elszámolható ktg-ek EUR-ban | B9: 0
A10: A Elszámolható költségek | B10: 0 | C10: 50000000
A11: B Elszámolható költségek | B11: =0 -> 0 | C11: 100000000
A12: C elszámolható költségek | B12: nincs!
A13: KKV bónusz | B13: 0.2
A14: Kaphat? | B14: =IF(B15>0,1,0) -> 1
A15: Alap intenzitás | B15: 0.35
A16: R szorzó értéke a támogatási térkép alapján | B16: 0.55
A17: Max. TT (EUR) | B17: =VLOOKUP(B15,Adatok!D12:E16,2,FALSE)*10^6 -> 26250000
A18: 17-es cikk
A19: Vállalatméret-szorzó | B19: =IF(D3="Nagy",0,IF(D3="Mikró/Kis",0.2,0.1)) -> 0.1
A20: HUF érték
A21: Elszámolható ktg-ek HUF-ban | B21: 0
A22: Hitel/támogatástartalom arány
A23: Hitelösszeg | B23: =Tamogatastartalom!D23 -> 720000000
A24: Támogatástartalom a futamidő alatt | B24: =Tamogatastartalom!AT5 -> 8132463.373
A25: Hitelösszeg/támogatástartalom | B25: =B23/B24 -> 88.53405998

Sheet Adatok (hidden)
A1: Felárak | M1: Segédszámítások
D2: Piaci referencia | J2: Refin kamatok | M2: Törlesztés | P2: Törlesztésgyakoriság | S2: Select
F3: Fedezettség | M3: Egyenlő összeg | N3: 1 | P3: Havi | Q3: 12 | S3: Beruházási hitel
F4: Magas | G4: Általános | H4: Alacsony | J4: Min 1 | K4: =refkam-3.5% -> -0.032 | M4: Egyenlő tőke | N4: 2 | P4: Negyedéves | Q4: 4 | S4: Forgóeszközhitel
D5: Hitelminősítés | E5: Kiváló | F5: 60 | G5: 75 | H5: 100 | J5: Min2 | K5: 0.001 | M5: Egyedi | N5: 0 | P5: Féléves | Q5: 2 | S5: Lízing
E6: Jó | F6: 75 | G6: 100 | H6: 220 | J6: Tényleges min | K6: =MAX(K4:K5) -> 0.001
E7: Kielégítő | F7: 100 | G7: 220 | H7: 400 | J7: Max | K7: =refkammin+4% -> 0.041
E8: Gyenge | F8: 220 | G8: 400 | H8: 650
E9: Rossz | F9: 400 | G9: 650 | H9: 1000
A10: Regionális támogatási intenzitások
B11: Nagyvállalat | D11: Intenzitás | E11: MAX Támogatástartalom (mio EUR)
A12: Select | B12: 0 | D12: 0.5 | E12: 37.5
A13: Dél-Alföld | B13: 0.5 | D13: 0.35 | E13: 26.25
A14: Dél-Dunántúl | B14: 0.5 | D14: 0.25 | E14: 18.75
A15: Észak-Alföld | B15: 0.5 | D15: 0.2 | E15: 15
A16: Észak-Magyarország | B16: 0.5 | D16: 0 | E16: 0
A17: Közép-Dunántúl | B17: 0.35
A18: Közép_Magyarország | B18: 0
A19: Nyugat-Dunántúl | B19: 0.25
B20: 14-es cikk
A21: Select | B21: 0
A22: Budapest | B22: 0
A23: Abony | B23: 0.35
A24: Acsa | B24: 0
A25: Albertirsa | B25: 0
A26: Alsónémedi | B26: 0.35
A27: Apaj | B27: 0
A28: Áporka | B28: 0.35
A29: Aszód | B29: 0.35
A30: Bag | B30: 0.35
A31: Bénye | B31: 0
A32: Bernecebaráti | B32: 0.35
A33: Biatorbágy | B33: 0
A34: Budajenő | B34: 0
A35: Budakalász | B35: 0
A36: Budakeszi | B36: 0
A37: Budaörs | B37: 0
A38: Budapest | B38: 0
A39: Bugyi | B39: 0
A40: Cegléd | B40: 0.35
A41: Ceglédbercel | B41: 0
A42: Csemő | B42: 0.35
A43: Csévharaszt | B43: 0
A44: Csobánka | B44: 0
A45: Csomád | B45: 0
A46: Csömör | B46: 0
A47: Csörög | B47: 0
A48: Csővár | B48: 0
A49: Dabas | B49: 0.35
A50: Dánszentmiklós | B50: 0
A51: Dány | B51: 0
A52: Délegyháza | B52: 0
A53: Diósd | B53: 0
A54: Domony | B54: 0.35
A55: Dömösd | B55: 0
A56: Dunabogdány | B56: 0
A57: Dunaharaszti | B57: 0.35
A58: Dunakeszi | B58: 0
A59: Dunavarsány | B59: 0
A60: Ecser | B60: 0.35
A61: Érd | B61: 0.35
A62: Erdőkertes | B62: 0
A63: Farmos | B63: 0.35
A64: Felsőpakony | B64: 0.35
A65: Fót | B65: 0
A66: Galagyörk | B66: 0
A67: Galahévíz | B67: 0
A68: Galamácsa | B68: 0
A69: Gomba | B69: 0
A70: Göd | B70: 0.35
A71: Gödöllő | B71: 0.35
A72: Gyál | B72: 0.35
A73: Gyömörő | B73: 0
A74: Halásztelek | B74: 0.35
A75: Herceghalom | B75: 0
A76: Hernád | B76: 0
A77: Hévizgyörk | B77: 0
A78: Iklad | B78: 0.35
A79: Inárcs | B79: 0
A80: Ipolydamásd | B80: 0.35
A81: Ipolytölgyes | B81: 0.35
A82: Isaszeg | B82: 0
A83: Jászkarajenő | B83: 0.35
A84: Kakucs | B84: 0
A85: Kartal | B85: 0.35
A86: Káva | B86: 0
A87: Kemence | B87: 0.35
A88: Kerepes | B88: 0
A89: Kiskunlacháza | B89: 0.35
A90: Kismaros | B90: 0
A91: Kisnémedi | B91: 0.35
A92: Kisoroszi | B92: 0
A93: Kistarcsa | B93: 0
A94: Kocsér | B94: 0.35
A95: Kóka | B95: 0
A96: Kosd | B96: 0
A97: Kóspallag | B97: 0.35
A98: Kőröstételen | B98: 0
A99: Leányfalu | B99: 0
A100: Letkés | B100: 0.35
A101: Lórév | B101: 0.35
A102: Maglód | B102: 0.35
A103: Majosháza | B103: 0
A104: Makád | B104: 0.35
A105: Márianosztra | B105: 0.35
A106: Mende | B106: 0
A107: Mikebuda | B107: 0.35
A108: Mogyoród | B108: 0
A109: Monor | B109: 0.35
A110: Nagybörzsöny | B110: 0.35
A111: Nagykáta | B111: 0.35
A112: Nagykovácsi | B112: 0
A113: Nagykőrös | B113: 0.35
A114: Nagymaros | B114: 0
A115: Nagytarcsa | B115: 0.35
A116: Nyáregyháza | B116: 0
A117: Nyársapát | B117: 0.35
A118: Ócsa | B118: 0.35
A119: Őrbottyán | B119: 0
A120: Örkény | B120: 0.35
A121: Pánd | B121: 0
A122: Páty | B122: 0
A123: Pécel | B123: 0.35
A124: Penc | B124: 0
A125: Perbál | B125: 0
A126: Perőcsény | B126: 0.35
A127: Péteri | B127: 0.35
A128: Pilis | B128: 0
A129: Pilisborosjenő | B129: 0
A130: Piliscsaba | B130: 0.2
A131: Pilisjászfalu | B131: 0.2
A132: Pilisszántó | B132: 0
A133: Pilisszentiván | B133: 0
A134: Pilisszentkereszt | B134: 0
A135: Pilisszentlászló | B135: 0
A136: Pilisvörösvár | B136: 0
A137: Pócsmegyer | B137: 0
A138: Pomáz | B138: 0
A139: Pusztavacs | B139: 0
A140: Pusztazámor | B140: 0
A141: Püspökhatvan | B141: 0.35
A142: Püspökszilágy | B142: 0.35
A143: Ráckeve | B143: 0.35
A144: Rád | B144: 0
A145: Remeteszőlős | B145: 0
A146: Solymár | B146: 0
A147: Sóskút | B147: 0
A148: Sülysáp | B148: 0
A149: Szada | B149: 0
A150: Százhalombatta | B150: 0
A151: Szentendre | B151: 0
A152: Szentmártonkáta | B152: 0.35
A153: Szentlőrinckáta | B153: 0
A154: Szigetbecse | B154: 0.35
A155: Szigetcsép | B155: 0
A156: Szigethalom | B156: 0
A157: Szigetmonostor | B157: 0
A158: Szigetszentmárton | B158: 0
A159: Szigetszentmiklós | B159: 0.35
A160: Szigetújfalu | B160: 0
A161: Szob | B161: 0.35
A162: Szokolya | B162: 0.35
A163: Sződ | B163: 0
A164: Sződliget | B164: 0.35
A165: Táborfalva | B165: 0.35
A166: Tahitótfalu | B166: 0
A167: Taksony | B167: 0
A168: Tápióbicske | B168: 0.35
A169: Tápiógyörgye | B169: 0.35
A170: Tápióság | B170: 0.35
A171: Tápiószecső | B171: 0
A172: Tápiószele | B172: 0.35
A173: Tápiószentmárton | B173: 0.35
A174: Tápiószőlős | B174: 0.35
A175: Tárnok | B175: 0
A176: Tatárszentgyörgy | B176: 0.35
A177: Telki | B177: 0
A178: Tésa | B178: 0.35
A179: Tinnye | B179: 0
A180: Tóalmás | B180: 0
A181: Tök | B181: 0
A182: Tököl | B182: 0
A183: Törökbálint | B183: 0
A184: Törtel | B184: 0.35
A185: Tura | B185: 0.35
A186: Újhartyán | B186: 0.35
A187: Újlengyel | B187: 0
A188: Újszilvás | B188: 0.35
A189: Úri | B189: 0
A190: Üllő | B190: 0.35
A191: Üröm | B191: 0
A192: Vác | B192: 0.35
A193: Vácduka | B193: 0
A194: Vácegres | B194: 0
A195: Váchartyán | B195: 0
A196: Váckisújfalu | B196: 0.35
A197: Vácrátót | B197: 0
A198: Vácaszentlászló | B198: 0
A199: Valkó | B199: 0.35
A200: Vámosmikola | B200: 0.35
... 16 more rows
